Workbook

Sheet BTS Overview
A1: Kaiser Permanente Information Technology Trace3 BTS - Build To Stock Master Order List (MOL)
A2: =_xlfn.CONCAT("Version ",Version," ",MONTH(Version_Date),"/",DAY(Version_Date),"/",YEAR(Version_Date)) -> Version V1.071 9/23/2021
A3: For Windows Server Consultation, please submit Service Request to IMG SI Wintel Engineering http://xmws.kp.org/pages/services/consulting.htm Or contact Sudipta Dutta-Roy at (925) 239 5702 M, Sudipta.Dutta-Roy@kp.org
A5: For Linux Server Consultation, please submit Service Request to IMG SDI Midrange Linux or contact Scott J Kurtz at (925) 924-5182, Scott.J.Kurtz@kp.org Link to Linux FFU page: https://sites.sp.kp.org/teams/sdi/ccs/cmdp/SitePages/Home.aspx
A6: Trace3 contacts
A7: Andrea Wolf +1 408-718-5510 awolf@trace3.com | B7: James Franklin +1-424-237-5205 james@trace3.com | C7: ISR Team at Trace3 DL-OTOV-ISR@trace3.com | D7: Andrea McKnight +713-300-3503 Andrea.McKnight@trace3.com | F7: Steve Stierwalt +1-408-513-4460 steven.stierwalt@trace3.com
A8: BTS configurations
A9: BTS Size - click to configure this model | B9: Chassis | C9: Processor (Dual Processor) | D9: Total Memory | E9: Part# | F9: Boot Drives | G9: Default FlexLOM | H9: Power Supplies | I9: Rail Kit
A10: =BTS_Size_Def[] -> BTS xSmall MWIE-NVR | B10: DL380 Gen10 12LFF 16 Core | C10: Xeon-Silver 4215R (3.2GHz/8-core/130W) | D10: 128GB | E10: Memory - 1R-128GB | F10: 2x480GB RI SSD | G10: 366FLR | H10: 2x800W | I10: HPE 2U Large Form Factor Ball Bearing Rail Kit
A11: BTS xSmall | B11: DL380 Gen10 8SFF 8 Core | C11: Xeon-Gold 5222 (3.8GHz/4-core/105W) | D11: 128GB | E11: Memory- 2R -128GB | F11: 2x480GB RI SSD | G11: 366FLR | H11: 2x800W | I11: HPE 2U Small Form Factor Ball Bearing Rail Kit
A12: BTS Small | B12: DL380 Gen10 8SFF 16 Core | C12: Xeon-Gold 6234 (3.3GHz/8-core/130W) | D12: 256GB | E12: Memory-256GB | F12: 2x480GB RI SSD | G12: 366FLR | H12: 2x800W | I12: HPE 2U Small Form Factor Ball Bearing Rail Kit
A13: BTS Medium | B13: DL380 Gen10 8SFF 32 Core | C13: Xeon-Gold 6226R (2.9GHz/16-core/150W) | D13: 384GB | E13: Memory-384GB | F13: 2x480GB RI SSD | G13: 366FLR | H13: 2x800W | I13: HPE 2U Small Form Factor Ball Bearing Rail Kit
A14: BTS Large | B14: DL380 Gen10 8SFF 48 Core | C14: Xeon-Gold 6248R (3.0GHz/24-core/205W) | D14: 768GB | E14: Memory-768GB | F14: 2x480GB RI SSD | G14: 366FLR | H14: 2x800W | I14: HPE 2U Small Form Factor Ball Bearing Rail Kit

Sheet BTS XS to L
A1: ="Version and Version Date " & CHAR(10) & _xlfn.CONCAT(Version," ",MONTH(Version_Date),"-",DAY(Version_Date)," ",YEAR(Version_Date)) -> Version and Version Date V1.071 9-23 2021 | B1: Kaiser Build to Stock Master Order List (MOL) XS to Large
B3: Fill in Light Blue selection boxes | C3: Pricing updated --> | D3: =Pricing_Date -> 2021-09-23
B4: Project Name | C4: Always verify pricing via BTS Portal or a Quote
B5: Project Contact | C5: Green is 30 day or less for pricing update
B6: Project Contact Email | C6: Yellow is 31 to 60 days since pricing update
A7: Location | C7: Red is greater than 60 days since update
A8: Select Location | B8: =VLOOKUP(Location_Sel,Location_Data,2,FALSE) -> Select shipping location | C8: Unknown
A9: Installation
A10: No | B10: =VLOOKUP(A10,Installation[],2,FALSE) -> No Installation Services | C10: Installation priced shown below
A11: iLO Configuration
A12: No | B12: =VLOOKUP(A12,Config_iLO[],2,) -> No configuration of iLO | C12: Included
A14: Server Quantity | B14: Decription | C14: Part Number | D14: Qty per server | E14: Price Each | F14: Qty on order | G14: Per Server Cost | H14: Line Summary Cost
A15: 1 | B15: <-- Enter the quantity of servers on this order
A16: Select Server
A17: BTS Large | B17: =VLOOKUP(Server_Select,BTS_Size_Def[],2,) -> DL380 Gen10 8SFF 48 Core | C17: =+Server_Select -> BTS Large | D17: 1 | E17: =VLOOKUP(Server_Select,Part_and_Price,2,FALSE) -> 9737.94 | F17: =+D17*Server_Qty -> 1 | G17: =+D17*E17 -> 9737.94 | H17: =+F17*E17 -> 9737.94
B18: =_xlfn.CONCAT("Processors 2x ",VLOOKUP(Server_Select,BTS_Size_Def[],3,FALSE),", Boot Drives ",VLOOKUP(Server_Select,BTS_Size_Def[],6,FALSE),", FlexLOM ",VLOOKUP(Server_Select,BTS_Size_Def[],7,FALSE),", Power Supplies ",VLOOKUP(Server_Select,BTS_Size_Def[],8,FALSE),", Rail Kit ",VLOOKUP(Server_Select,BTS_Size_Def[],9,FALSE),", HPE OneView") -> Processors 2x Xeon-Gold 6248R (3.0GHz/24-core/205W), Boot Drives 2x480GB RI SSD, FlexLOM 366FLR, Power Supplies 2x800W, Rail Kit HPE 2U Small Form Factor Ball Bearing Rail Kit, HPE OneView | C18: Included
A19: =IF(Mem_Change=Default_mem,"Default Memory","Non-Default Memory") -> Non-Default Memory
A20: =VLOOKUP(Server_Select,BTS_Size_Def[],5,FALSE) -> Memory-768GB | B20: =VLOOKUP(Mem_Change,Optional_Mem[],1,FALSE) -> Memory-384GB | C20: Total Memory
A21: Change Default Memory | B21: =VLOOKUP(Mem_Change,Optional_Mem[],2,FALSE) -> 12 | C21: DIMM Count | D21: =+B21 -> 12 | E21: Bundle Price | F21: =+D21*Server_Qty -> 12
A22: Memory-384GB | B22: =VLOOKUP(Mem_Change,Optional_Mem[],3,FALSE) -> HPE 32GB (1x32GB) Dual Rank x4 DDR4-2933 | C22: DIMM Size | D22: 1 | E22: =VLOOKUP(Mem_Change,Part_and_Price,2,FALSE) -> 6754.08 | F22: =+D22*Server_Qty -> 1 | G22: =+D22*E22 -> 6754.08 | H22: =+F22*E22 -> 6754.08
A23: Network | C23: Part Number | E23: Bundle Price
A24: None | B24: =VLOOKUP(Nic_Sel,Nic_Sel_Data,3,FALSE) -> 0 | C24: =VLOOKUP(Nic_Sel,Nic_Sel_Data,2,FALSE) -> 0 | D24: =VLOOKUP(Nic_Sel,Nic_Sel_Data,4,FALSE) -> 0 | E24: =IF(D24=0,0,VLOOKUP(Nic_Sel,Part_and_Price,2,FALSE)) -> 0 | F24: =+D24*Server_Qty/2 -> 0 | G24: =+E24*D24/2 -> 0 | H24: =+F24*E24 -> 0
B25: =VLOOKUP(Nic_Sel,NIC_Addon_Data,2,FALSE) -> 0 | C25: =VLOOKUP(Nic_Sel,NIC_Addon_Data,3,FALSE) -> 0 | D25: =VLOOKUP(Nic_Sel,NIC_Addon_Data,4,FALSE) -> 0
A26: HBA
A27: None | B27: =VLOOKUP(HBA_Sel,HBA_Data,3,FALSE) -> 0 | C27: =VLOOKUP(HBA_Sel,HBA_Data,2,FALSE) -> 0 | D27: =VLOOKUP(HBA_Sel,HBA_Data,4,FALSE) -> 0 | E27: =IF(D27=0,0,VLOOKUP(HBA_Sel,Part_and_Price,2,FALSE)) -> 0 | F27: =+D27*Server_Qty/2 -> 0 | G27: =+D27*E27/2 -> 0 | H27: =+F27*E27 -> 0
A29: Extra Drive Bay Option | E29: Price Each
A30: None | B30: =VLOOKUP(Sel_Drive_Total,Data_Drive_Bays[],2,FALSE) -> 8 Data Drive Capacity | C30: =VLOOKUP(Sel_Drive_Total,Data_Drive_Bays[],5,FALSE) -> - | D30: =VLOOKUP(Sel_Drive_Total,Data_Drive_Bays[],4,FALSE) -> 0 | E30: =IF(D30=0,0,VLOOKUP(C30,Part_and_Price,2,FALSE)) -> 0 | F30: =+D30*Server_Qty -> 0 | G30: =+D30*E30 -> 0 | H30: =+F30*E30 -> 0
B31: =VLOOKUP(Sel_Drive_Total,Data_Drive_Bays[],3,FALSE) -> 8
A32: Data Drives | B32: Descriptions | C32: =VLOOKUP(Sel_Drive_Total,Data_Drive_Bays[],3,FALSE) -> 8 | E32: Price Each
A33: 0 | B33: Select Drive Size | C33: =VLOOKUP(B33,Drive_Size_Data,2,FALSE) -> - | D33: =+Drive_Count_1 -> 0 | E33: =IF(D33=0,0,VLOOKUP(Drive_1,Part_and_Price,2,FALSE)) -> 0 | F33: =+D33*Server_Qty -> 0 | G33: =+D33*E33 -> 0 | H33: =+F33*E33 -> 0
A34: 0 | B34: Select Drive Size | C34: =VLOOKUP(Drive_2,Drive_Size_Data,2,FALSE) -> - | D34: =+Drive_Count_2 -> 0 | E34: =IF(D34=0,0,VLOOKUP(Drive_2,Part_and_Price,2,FALSE)) -> 0 | F34: =+D34*Server_Qty -> 0 | G34: =+D34*E34 -> 0 | H34: =+F34*E34 -> 0
A35: 0 | B35: Select Drive Size | C35: =VLOOKUP(Drive_3,Drive_Size_Data,2,FALSE) -> - | D35: =+Drive_Count_3 -> 0 | E35: =IF(D35=0,0,VLOOKUP(Drive_3,Part_and_Price,2,FALSE)) -> 0 | F35: =+D35*Server_Qty -> 0 | G35: =+D35*E35 -> 0 | H35: =+F35*E35 -> 0
A36: 0 | B36: Select Drive Size | C36: =VLOOKUP(Drive_4,Drive_Size_Data,2,FALSE) -> - | D36: =+Drive_Count_4 -> 0 | E36: =IF(D36=0,0,VLOOKUP(Drive_4,Part_and_Price,2,FALSE)) -> 0 | F36: =+D36*Server_Qty -> 0 | G36: =+D36*E36 -> 0 | H36: =+F36*E36 -> 0
A37: =SUM(Data_Drive_Count) -> 0 | B37: =IF(A37>B31,"Warning, Reduce Drive Selection or add extra drive bay","Total Data Drives Selected") -> Total Data Drives Selected
G38: Per Server Cost | H38: Order Summary
E39: Server subtotal --> | G39: =SUM(G17:G37) -> 16492.02 | H39: =SUM(H17:H37) -> 16492.02
C40: Shipping | D40: 1 | E40: 120 | F40: =+D40*Server_Qty -> 1 | G40: =+D40*E40 -> 120 | H40: =+F40*E40 -> 120
C41: Installation | D41: =IF(Inst_Sel="Yes",1,0) -> 0 | E41: 500 | F41: =+D41*Server_Qty -> 0 | G41: =+D41*E41 -> 0 | H41: =+F41*E41 -> 0
A42: 115V Power Cord Option | C42: Part Number
A43: No | B43: 115 Volt Power Cord | C43: P007-010 | D43: =IF(A43="Yes",2,0) -> 0 | E43: =IF(D43=0,0,VLOOKUP(C43,Part_and_Price,2,FALSE)) -> 0 | F43: =+D43*Server_Qty -> 0 | G43: =+D43*E43 -> 0 | H43: =+F43*E43 -> 0
A44: Trace3 order Description and part number | B44: =IF(Default_Mem_Status="Default Memory",B59,B60) -> LG HPE DL380 Gen10 8SFF Svr Bundle custom | D44: =IF(Default_Mem_Status="Default Memory",A59,A60) -> HPE-LG-DL-V1-C5
E45: Server Total --> | G45: =SUM(G39:G43) -> 16612.02 | H45: =SUM(H39:H43) -> 16612.02
A59: =_xlfn._xlws.FILTER(Table3[],(Table3[Server]=Server_Select) * (Table3[10/25GB]=Nic_Sel)*(Table3[HBA]=HBA_Sel),"No Results") -> HPE-LG-DL-V1-C2 | B59: LG-8SFF-0-0 HPE DL380 Gen10 8SFF Svr Bundle w/o NIC, NIC Transceivers, and HBA | C59: BTS Large | D59: None | E59: None | F59: Default Memory | G59: 0
A60: =_xlfn._xlws.FILTER(Table3[],(Table3[Std Memory]=Default_Mem_Status)*(Table3[Server]=Server_Select),"No results") -> HPE-LG-DL-V1-C5 | B60: LG HPE DL380 Gen10 8SFF Svr Bundle custom | C60: BTS Large | D60: x | E60: x | F60: Non-Default Memory | G60: 0

Sheet BTS NVR MWIE
A1: =_xlfn.CONCAT("Version ",Version," Version Date ",MONTH(Version_Date),"-",DAY(Version_Date)," ",YEAR(Version_Date)) -> Version V1.071 Version Date 9-23 2021 | B1: Kaiser Build to Stock Master Order List (MOL) NVR/MWIE
B3: Fill in Light Blue selection boxes | C3: Pricing updated --> | D3: =Pricing_Date -> 2021-09-23
B4: Project Name | C4: Always verify pricing via BTS Portal or a Quote
B5: Project Contact | C5: Green is 30 day or less for pricing update
B6: Project Contact Email | C6: Yellow is 31 to 60 days since pricing update
A7: Location | C7: Red is greater than 60 days since update
A8: Select Location | B8: =VLOOKUP(Location_Sel,Location_Data,2,FALSE) -> Select shipping location
A9: Installation
A10: No | B10: =VLOOKUP(A10,Installation[],2,FALSE) -> No Installation Services | C10: Installation priced shown below
A11: iLO Configuration
A12: No | B12: =VLOOKUP(A12,Config_iLO[],2,) -> No configuration of iLO | C12: Included
A14: Server Quantity | B14: Decription | C14: Part Number | D14: Qty per server | E14: Price Each | F14: Qty on order | G14: Per Server Cost | H14: Line Summary Cost
A15: 5 | B15: <-- Enter the quantity of servers on this order
A16: Select Server
A17: BTS xSmall MWIE-NVR | B17: =VLOOKUP(Server_Select,BTS_Size_Def[],2,) -> DL380 Gen10 12LFF 16 Core | C17: =+Server_Select -> BTS xSmall MWIE-NVR | D17: 1 | E17: =VLOOKUP(Server_Select,Part_and_Price,2,FALSE) -> 8267.78 | F17: =+D17*Server_Qty -> 5 | G17: =+D17*E17 -> 8267.78 | H17: =+F17*E17 -> 41338.9
B18: =_xlfn.CONCAT("Processors 2x ",VLOOKUP(Server_Select,BTS_Size_Def[],3,FALSE),", Boot Drives ",VLOOKUP(Server_Select,BTS_Size_Def[],6,FALSE),", FlexLOM ",VLOOKUP(Server_Select,BTS_Size_Def[],7,FALSE),", Power Supplies ",VLOOKUP(Server_Select,BTS_Size_Def[],8,FALSE),", Rail Kit ",VLOOKUP(Server_Select,BTS_Size_Def[],9,FALSE),", HPE OneView") -> Processors 2x Xeon-Silver 4215R (3.2GHz/8-core/130W), Boot Drives 2x480GB RI SSD, FlexLOM 366FLR, Power Supplies 2x800W, Rail Kit HPE 2U Large Form Factor Ball Bearing Rail Kit, HPE OneView | C18: Included
A19: =IF(Mem_Change=Default_mem,"Default Memory","Non-Default Memory") -> Default Memory
A20: =VLOOKUP(Server_Select,BTS_Size_Def[],5,FALSE) -> Memory - 1R-128GB | B20: =VLOOKUP(Mem_Change,Optional_Mem[],1,FALSE) -> Memory - 1R-128GB | C20: Total Memory
A21: Change Default Memory | B21: =VLOOKUP(Mem_Change,Optional_Mem[],2,FALSE) -> 8 | C21: DIMM Count | D21: =+B21 -> 8 | E21: Bundle Price | F21: =+D21*Server_Qty -> 40
A22: Memory - 1R-128GB | B22: =VLOOKUP(Mem_Change,Optional_Mem[],3,FALSE) -> HPE 16GB (1x16GB) Single Rank x4 DDR4-2933 | C22: DIMM Size | D22: 1 | E22: =VLOOKUP(Mem_Change,Part_and_Price,2,FALSE) -> 1976 | F22: =+D22*Server_Qty -> 5 | G22: =+D22*E22 -> 1976 | H22: =+F22*E22 -> 9880
A23: Network | C23: Part Number | E23: Bundle Price
A24: None | B24: =VLOOKUP(Nic_Sel,Nic_Sel_Data,3,FALSE) -> 0 | C24: =VLOOKUP(Nic_Sel,Nic_Sel_Data,2,FALSE) -> 0 | D24: =VLOOKUP(Nic_Sel,Nic_Sel_Data,4,FALSE) -> 0 | E24: =IF(D24=0,0,VLOOKUP(Nic_Sel,Part_and_Price,2,FALSE)) -> 0 | F24: =+D24*Server_Qty/2 -> 0 | G24: =+E24+F24 -> 0 | H24: =+F24*E24 -> 0
B25: =VLOOKUP(Nic_Sel,NIC_Addon_Data,2,FALSE) -> 0 | C25: =VLOOKUP(Nic_Sel,NIC_Addon_Data,3,FALSE) -> 0 | D25: =VLOOKUP(Nic_Sel,NIC_Addon_Data,4,FALSE) -> 0
A26: HBA
A27: None | B27: =VLOOKUP(HBA_Sel,HBA_Data,3,FALSE) -> 0 | C27: =VLOOKUP(HBA_Sel,HBA_Data,2,FALSE) -> 0 | D27: =VLOOKUP(HBA_Sel,HBA_Data,4,FALSE) -> 0 | E27: =IF(D27=0,0,VLOOKUP(HBA_Sel,Part_and_Price,2,FALSE)) -> 0 | F27: =+D27*Server_Qty -> 0 | G27: =+D27*E27 -> 0 | H27: =+F27*E27 -> 0
A29: Data Drives Bundles | B29: Descriptions
A30: Small Storage - 4 - 10TB | B30: =VLOOKUP(Drive_Sel,Drive_Option_12LFF[],3,FALSE) -> HPE 10TB SAS 12G Midline 7.2K LFF Helium 512e DS | C30: =+Drive_Sel -> Small Storage - 4 - 10TB | D30: 1 | E30: =IF(D30=0,0,VLOOKUP(Drive_Sel,Part_and_Price,2,FALSE)) -> 0 | F30: =+D30*Server_Qty -> 5 | G30: =+D30*E30 -> 0 | H30: =+F30*E30 -> 0
A31: GPU
A32: N | B32: =VLOOKUP(GPU,GPU_Data[],3,FALSE) -> No GPU | C32: =VLOOKUP(GPU,GPU_Data[],2,FALSE) -> - | D32: =VLOOKUP(GPU,GPU_Data[],4,FALSE) -> 0 | E32: =IF(D32=0,0,VLOOKUP(C32,Part_and_Price,2,FALSE)) -> 0 | F32: =+D32*Server_Qty -> 0 | G32: =+D32*E32 -> 0 | H32: =+F32*E32 -> 0
G34: Per Server Cost | H34: Order Summary
E35: Server subtotal --> | G35: =SUM(G17:G33) -> 10243.78 | H35: =SUM(H17:H33) -> 51218.9
C36: Shipping | D36: 1 | E36: 120 | F36: =+D36*Server_Qty -> 5 | G36: =+D36*E36 -> 120 | H36: =+F36*E36 -> 600
C37: Installation | D37: =IF(Inst_Sel="Yes",1,0) -> 0 | E37: 500 | F37: =+D37*Server_Qty -> 0 | G37: =+D37*E37 -> 0 | H37: =+F37*E37 -> 0
A38: 115V Power Cord Option | C38: Part Number
A39: No | B39: 115 Volt Power Cord | C39: P007-010 | D39: =IF(A39="Yes",2,0) -> 0 | E39: =IF(D39=0,0,VLOOKUP(C39,Part_and_Price,2,FALSE)) -> 0 | F39: =+D39*Server_Qty -> 0 | G39: =+D39*E39 -> 0 | H39: =+F39*E39 -> 0
A40: Trace3 order Description and part number | B40: =IF(Default_Mem_Status="Default Memory",B55,B57) -> LenMWIe 12LFF HPE DL380 Gen10 Svr Bundle | D40: =IF(Default_Mem_Status="Default Memory",A55,A57) -> HPE-XS-LenMWIE-DL-V1-C1
E41: Server Total --> | G41: =SUM(G35:G39) -> 10363.78 | H41: =SUM(H35:H39) -> 51818.9
A55: =_xlfn._xlws.FILTER(Table3[],(Table3[Server]=Server_Select)*(Table3[GPU]=GPU),"No Results") -> HPE-XS-LenMWIE-DL-V1-C1 | B55: LenMWIe 12LFF HPE DL380 Gen10 Svr Bundle | C55: BTS xSmall MWIE-NVR | D55: None | E55: None | F55: Default Memory | G55: N
A56: HPE-XS-LenMWIE-DL-V1-C5 | B56: LenMWIe 12LFF HPE DL380 Gen10 Svr Bundle non-standard memory | C56: BTS xSmall MWIE-NVR | D56: None | E56: None | F56: Non-Default Memory | G56: N
A57: =_xlfn._xlws.FILTER(Table3[],(Table3[Std Memory]=Default_Mem_Status)*(Table3[Server]=Server_Select),"No results") -> HPE-XS-LenMWIE-DL-V1-C1 | B57: LenMWIe 12LFF HPE DL380 Gen10 Svr Bundle | C57: BTS xSmall MWIE-NVR | D57: None | E57: None | F57: Default Memory | G57: N
A58: HPE-XS-LenMWIE-DL-V1-C2 | B58: LenMWIe 12LFF HPE DL380 Gen10 Svr Bundle with GPU | C58: BTS xSmall MWIE-NVR | D58: None | E58: None | F58: Default Memory | G58: Y

Sheet Data (hidden)
A1: Version | B1: V1.071
A2: Version Date | B2: =+C2 -> 2021-09-23T09:25:07.770 | C2: =NOW() -> 2021-09-23T09:25:07.770
A3: BTS Size | B3: Chassis | C3: Processor (Dual Processor) | D3: Total Memory | E3: Part# | F3: Boot Drives | G3: Default FlexLOM | H3: Power Supplies | I3: Rail Kit
A4: BTS xSmall MWIE-NVR | B4: DL380 Gen10 12LFF 16 Core | C4: Xeon-Silver 4215R (3.2GHz/8-core/130W) | D4: 128GB | E4: Memory - 1R-128GB | F4: 2x480GB RI SSD | G4: 366FLR | H4: 2x800W | I4: HPE 2U Large Form Factor Ball Bearing Rail Kit
A5: BTS xSmall | B5: DL380 Gen10 8SFF 8 Core | C5: Xeon-Gold 5222 (3.8GHz/4-core/105W) | D5: 128GB | E5: Memory- 2R -128GB | F5: 2x480GB RI SSD | G5: 366FLR | H5: 2x800W | I5: HPE 2U Small Form Factor Ball Bearing Rail Kit
A6: BTS Small | B6: DL380 Gen10 8SFF 16 Core | C6: Xeon-Gold 6234 (3.3GHz/8-core/130W) | D6: 256GB | E6: Memory-256GB | F6: 2x480GB RI SSD | G6: 366FLR | H6: 2x800W | I6: HPE 2U Small Form Factor Ball Bearing Rail Kit
A7: BTS Medium | B7: DL380 Gen10 8SFF 32 Core | C7: Xeon-Gold 6226R (2.9GHz/16-core/150W) | D7: 384GB | E7: Memory-384GB | F7: 2x480GB RI SSD | G7: 366FLR | H7: 2x800W | I7: HPE 2U Small Form Factor Ball Bearing Rail Kit
A8: BTS Large | B8: DL380 Gen10 8SFF 48 Core | C8: Xeon-Gold 6248R (3.0GHz/24-core/205W) | D8: 768GB | E8: Memory-768GB | F8: 2x480GB RI SSD | G8: 366FLR | H8: 2x800W | I8: HPE 2U Small Form Factor Ball Bearing Rail Kit
F10: Manditory addition
A11: PCI Card Options | B11: Card part number | C11: Description | D11: Qty | F11: Description | G11: Part# | H11: Qty
A12: None | E12: None
A13: Dual 10Gbe NIC Option | B13: 817753-B21 | C13: HPE Ethernet 10/25Gb 2-port 640SFP28 Adapter | D13: 2 | E13: Dual 10Gbe NIC Option | F13: HPE BladeSystem c-Class 10Gb SFP+ SR Transceiver | G13: 455883-B21 | H13: 4
A14: None
A15: Dual 32G HBA Option | B15: Q0L12A | C15: HPE SN1600E 32Gb Dual Port Fibre Channel HBA | D15: 2
A17: OneView Software
A20: Data Drives Options | B20: Drive part number | E20: Location | F20: Name | H20: Location | I20: Name
A21: Select Drive Size | B21: - | C21: Number of Drive Models to choose from DL380 gen10 SFF | D21: =ROWS(Data_Drive_Sel) -> 13 | E21: Select Location | F21: Select shipping location | H21: Select Location | I21: Select shipping location
A22: 480 GB MU SSD | B22: P05976-B21 | E22: BDC | F22: Boulder Data Center | H22: Regional | I22: Regional MOB, Hospital or Office: Enter address here -->
A23: 960 GB MU SSD | B23: P05980-B21 | E23: NDC | F23: Napa Data Center | H23: BDC | I23: Boulder Data Center
A24: 1.92 TB MU SSD | B24: P05986-B21 | E24: SSDC | F24: Silver Spring Data Center | H24: NDC | I24: Napa Data Center
A25: 3.84 TB MU SSD | B25: P05994-B21 | E25: CDC | F25: Corona Data Center | H25: SSDC | I25: Silver Spring Data Center
A26: 300 GB 15K | B26: 870753-B21 | E26: PDC | F26: Pleasanton Data Center | H26: CDC | I26: Corona Data Center
A27: 600 GB 15K | B27: 870757-B21 | E27: Regional | F27: Regional MOB, Hospital or Office: Enter address here -->
A28: 900 GB 15K | B28: 870759-B21 | E28: Installation | F28: Description
A29: 300 GB 10K | B29: 872475-B21 | E29: No | F29: No Installation Services
A30: 600 GB 10K | B30: 872477-B21 | E30: Yes | F30: Local Installation Services
A31: 1.2 TB 10K | B31: 872479-B21
A32: 1.8 TB 10K | B32: 872481-B21
A33: 2.4 TB 10K | B33: 881457-B21
B35: Part Number | C35: Description | D35: Server | E35: 10/25GB | F35: HBA | G35: Std Memory | H35: GPU
B36: HPE-XS-DL-V1-C1 | C36: XS-8SFF-10G-32G HPE DL380 Gen10 8SFF Svr Bundle w/ NIC, NIC Transceivers, and HBA | D36: BTS xSmall | E36: Dual 10Gbe NIC Option | F36: Dual 32G HBA Option | G36: Default Memory
B37: HPE-XS-DL-V1-C2 | C37: XS-8SFF-0-0 HPE DL380 Gen10 8SFF Svr Bundle w/o NIC, NIC Transceivers, and HBA | D37: BTS xSmall | E37: None | F37: None | G37: Default Memory
B38: HPE-XS-DL-V1-C3 | C38: XS-8SFF-10G-0 HPE DL380 Gen10 8SFF Svr Bundle w/ NIC, NIC Transceivers; w/o HBA | D38: BTS xSmall | E38: Dual 10Gbe NIC Option | F38: None | G38: Default Memory
B39: HPE-XS-DL-V1-C4 | C39: XS-8SFF-0-32G HPE DL380 Gen10 8SFF Svr Bundle w/o NIC and NIC Transceivers; w/ HBA | D39: BTS xSmall | E39: None | F39: Dual 32G HBA Option | G39: Default Memory
B40: HPE-XS-DL-V1-C5 | C40: XS HPE DL380 Gen10 8SFF Svr Bundle custom | D40: BTS xSmall | E40: x | F40: x | G40: Non-Default Memory
B41: HPE-SM-DL-V1-C1 | C41: SM-8SFF-10G-32G HPE DL380 Gen10 8SFF Svr Bundle w/ NIC, NIC Transceivers, and HBA | D41: BTS Small | E41: Dual 10Gbe NIC Option | F41: Dual 32G HBA Option | G41: Default Memory
B42: HPE-SM-DL-V1-C2 | C42: SM-8SFF-0-0 HPE DL380 Gen10 8SFF Svr Bundle w/o NIC, NIC Transceivers, and HBA | D42: BTS Small | E42: None | F42: None | G42: Default Memory
B43: HPE-SM-DL-V1-C3 | C43: SM-8SFF-10G-0 HPE DL380 Gen10 8SFF Svr Bundle w/ NIC, NIC Transceivers; w/o HBA | D43: BTS Small | E43: Dual 10Gbe NIC Option | F43: None | G43: Default Memory
B44: HPE-SM-DL-V1-C4 | C44: SM-8SFF-0-32G HPE DL380 Gen10 8SFF Svr Bundle w/o NIC and NIC Transceivers; w/ HBA, | D44: BTS Small | E44: 0 | F44: Dual 32G HBA Option | G44: Default Memory
B45: HPE-SM-DL-V1-C5 | C45: SM HPE DL380 Gen10 8SFF Svr Bundle custom | D45: BTS Small | E45: x | F45: x | G45: Non-Default Memory
B46: HPE-MD-DL-V1-C1 | C46: MD-8SFF-10G-32G HPE DL380 Gen10 8SFF Svr Bundle w/ NIC, NIC Transceivers, and HBA | D46: BTS Medium | E46: Dual 10Gbe NIC Option | F46: Dual 32G HBA Option | G46: Default Memory
B47: HPE-MD-DL-V1-C2 | C47: MD-8SFF-0-0 HPE DL380 Gen10 8SFF Svr Bundle w/o NIC, NIC Transceivers, and HBA | D47: BTS Medium | E47: None | F47: None | G47: Default Memory
B48: HPE-MD-DL-V1-C3 | C48: MD-8SFF-10G-0 HPE DL380 Gen10 8SFF Svr Bundle w/ NIC, NIC Transceivers; w/o HBA | D48: BTS Medium | E48: Dual 10Gbe NIC Option | F48: None | G48: Default Memory
B49: HPE-MD-DL-V1-C4 | C49: MD-8SFF-0-32G HPE DL380 Gen10 8SFF Svr Bundle w/o NIC and NIC Transceivers; w/ HBA | D49: BTS Medium | E49: None | F49: Dual 32G HBA Option | G49: Default Memory
B50: HPE-MD-DL-V1-C5 | C50: MD HPE DL380 Gen10 8SFF Svr Bundle custom | D50: BTS Medium | E50: x | F50: x | G50: Non-Default Memory
B51: HPE-LG-DL-V1-C1 | C51: LG-8SFF-10G-32G HPE DL380 Gen10 8SFF Svr Bundle w/ NIC, NIC Transceivers, and HBA | D51: BTS Large | E51: Dual 10Gbe NIC Option | F51: Dual 32G HBA Option | G51: Default Memory
B52: HPE-LG-DL-V1-C2 | C52: LG-8SFF-0-0 HPE DL380 Gen10 8SFF Svr Bundle w/o NIC, NIC Transceivers, and HBA | D52: BTS Large | E52: None | F52: None | G52: Default Memory
B53: HPE-LG-DL-V1-C3 | C53: LG-8SFF-10G-0 HPE DL380 Gen10 8SFF Svr Bundle w/ NIC, NIC Transceivers; w/o HBA | D53: BTS Large | E53: Dual 10Gbe NIC Option | F53: None | G53: Default Memory
B54: HPE-LG-DL-V1-C4 | C54: LG-8SFF-0-32G HPE DL380 Gen10 8SFF Svr Bundle w/o NIC and NIC Transceivers; w/ HBA | D54: BTS Large | E54: None | F54: Dual 32G HBA Option | G54: Default Memory
B55: HPE-LG-DL-V1-C5 | C55: LG HPE DL380 Gen10 8SFF Svr Bundle custom | D55: BTS Large | E55: x | F55: x | G55: Non-Default Memory
B56: HPE-XS-LenMWIE-DL-V1-C1 | C56: LenMWIe 12LFF HPE DL380 Gen10 Svr Bundle | D56: BTS xSmall MWIE-NVR | E56: None | F56: None | G56: Default Memory | H56: N
B57: HPE-XS-LenMWIE-DL-V1-C2 | C57: LenMWIe 12LFF HPE DL380 Gen10 Svr Bundle with GPU | D57: BTS xSmall MWIE-NVR | E57: None | F57: None | G57: Default Memory | H57: Y
B58: HPE-XS-LenMWIE-DL-V1-C5 | C58: LenMWIe 12LFF HPE DL380 Gen10 Svr Bundle non-standard memory | D58: BTS xSmall MWIE-NVR | E58: None | F58: None | G58: Non-Default Memory | H58: N
A60: Optional Memory | B60: DIMM Count | C60: DIMM Size | E60: Optional Memory LFF
A61: Default | E61: Memory - 1R-128GB
A62: Memory - 1R-128GB | B62: 8 | C62: HPE 16GB (1x16GB) Single Rank x4 DDR4-2933 | E62: Memory-256GB
A63: Memory- 2R -128GB | B63: 8 | C63: HPE 16GB (1x16GB) Dual Rank x8 DDR4-2933 | E63: Memory-384GB
A64: Memory-256GB | B64: 16 | C64: HPE 16GB (1x16GB) Dual Rank x8 DDR4-2933 | E64: Memory-512GB
A65: Memory-384GB | B65: 12 | C65: HPE 32GB (1x32GB) Dual Rank x4 DDR4-2933 | E65: Memory-768GB
A66: Memory-512GB | B66: 8 | C66: HPE 64GB (1x64GB) Dual Rank x4 DDR4-2933
A67: Memory-768GB | B67: 12 | C67: HPE 64GB (1x64GB) Dual Rank x4 DDR4-2933
A69: Extra Drive Bay Option | B69: Drive count | C69: Drive bays available | D69: Drive Bay Added | E69: Part Number
A70: None | B70: 8 Data Drive Capacity | C70: 8 | D70: 0 | E70: -
A71: Extra Drive Bay Added | B71: 12 Data Drive Capacity | C71: 12 | D71: 1 | E71: 826691-B21
A74: Configure iLO | B74: Description
A75: No | B75: No configuration of iLO
A76: Yes | B76: Configuration of iLO needed
A78: 12 LFF Drive option | B78: Drive count | C78: Drive description
A79: Small Storage - 4 - 10TB | B79: 4 | C79: HPE 10TB SAS 12G Midline 7.2K LFF Helium 512e DS
A80: Medium Storage 8 - 10TB | B80: 8 | C80: HPE 10TB SAS 12G Midline 7.2K LFF Helium 512e DS
A81: Large Storage 12 - 10TB | B81: 12 | C81: HPE 10TB SAS 12G Midline 7.2K LFF Helium 512e DS
A84: GPU Select | B84: Part# | C84: Desciption | D84: qty
A85: N | B85: - | C85: No GPU | D85: 0
A86: Y | B86: R1F95A | C86: NVIDIA Quadro RTX 4000 includes power cable | D86: 1

Sheet PriceList (hidden)
A1: Pricing Date --> | B1: 2021-09-23
A2: Description | B2: Part# | C2: Price | D2: Base mem price | E2: Server price with memory
A3: xSmall Server for Lenel & MWiE – HPE DL380 G10 - 12 Bay LFF | B3: BTS xSmall MWIE-NVR | C3: =+E3-D3 -> 8267.78 | D3: 1976 | E3: 10243.78
A4: xSmall Server – HPE DL380 G10 - 8 Bay SFF | B4: BTS xSmall | C4: =+E4-D4 -> 6216.18 | D4: 2304.72 | E4: 8520.9
A5: Small Server – HPE DL380 G10 - 8 Bay SFF | B5: BTS Small | C5: =+E5-D5 -> 7810.59 | D5: 4609.44 | E5: 12420.03
A6: Medium Server – HPE DL380 G10 - 8 Bay SFF | B6: BTS Medium | C6: =+E6-D6 -> 7642.35 | D6: 6754.08 | E6: 14396.43
A7: Large Server – HPE DL380 G10 - 8 Bay SFF | B7: BTS Large | C7: =+E7-D7 -> 9737.94 | D7: 12259.8 | E7: 21997.74
A8: Dual 10Gbe NIC Option | B8: Dual 10Gbe NIC Option | C8: 2174.55
A9: Dual 32G HBA Option | B9: Dual 32G HBA Option | C9: 3006.55
B12: Column1 | C12: Column2
A13: XS-8SFF-10G-32G HPE DL380 Gen10 8SFF Svr Bundle w/ NIC, NIC Transceivers, and HBA | B13: HPE-XS-DL-V1-C1 | C13: 14125.25
A14: XS-8SFF-0-0 HPE DL380 Gen10 8SFF Svr Bundle w/o NIC, NIC Transceivers, and HBA | B14: HPE-XS-DL-V1-C2 | C14: 8784.22
A15: XS-8SFF-10G-0 HPE DL380 Gen10 8SFF Svr Bundle w/ NIC, NIC Transceivers; w/o HBA | B15: HPE-XS-DL-V1-C3 | C15: 11026.02
A16: XS-8SFF-0-32G HPE DL380 Gen10 8SFF Svr Bundle w/o NIC and NIC Transceivers; w/ HBA | B16: HPE-XS-DL-V1-C4 | C16: 11883.45
A17: XS HPE DL380 Gen10 8SFF Svr Bundle custom | B17: HPE-XS-DL-V1-C5 | C17: Call Trace3
A18: SM-8SFF-10G-32G HPE DL380 Gen10 8SFF Svr Bundle w/ NIC, NIC Transceivers, and HBA | B18: HPE-SM-DL-V1-C1 | C18: 18145
A19: SM-8SFF-0-0 HPE DL380 Gen10 8SFF Svr Bundle w/o NIC, NIC Transceivers, and HBA | B19: HPE-SM-DL-V1-C2 | C19: 12803.97
A20: SM-8SFF-10G-0 HPE DL380 Gen10 8SFF Svr Bundle w/ NIC, NIC Transceivers; w/o HBA | B20: HPE-SM-DL-V1-C3 | C20: 15045.77
A21: SM-8SFF-0-32G HPE DL380 Gen10 8SFF Svr Bundle w/o NIC and NIC Transceivers; w/ HBA, | B21: HPE-SM-DL-V1-C4 | C21: 15903.2
A22: SM HPE DL380 Gen10 8SFF Svr Bundle custom | B22: HPE-SM-DL-V1-C5 | C22: Call Trace3
A23: MD-8SFF-10G-32G HPE DL380 Gen10 8SFF Svr Bundle w/ NIC, NIC Transceivers, and HBA | B23: HPE-MD-DL-V1-C1 | C23: 20183
A24: MD-8SFF-0-0 HPE DL380 Gen10 8SFF Svr Bundle w/o NIC, NIC Transceivers, and HBA | B24: HPE-MD-DL-V1-C2 | C24: 14841.97
A25: MD-8SFF-10G-0 HPE DL380 Gen10 8SFF Svr Bundle w/ NIC, NIC Transceivers; w/o HBA | B25: HPE-MD-DL-V1-C3 | C25: 17083.77
A26: MD-8SFF-0-32G HPE DL380 Gen10 8SFF Svr Bundle w/o NIC and NIC Transceivers; w/ HBA | B26: HPE-MD-DL-V1-C4 | C26: 17941.2
A27: MD HPE DL380 Gen10 8SFF Svr Bundle custom | B27: HPE-MD-DL-V1-C5 | C27: Call Trace3
A28: LG-8SFF-10G-32G HPE DL380 Gen10 8SFF Svr Bundle w/ NIC, NIC Transceivers, and HBA | B28: HPE-LG-DL-V1-C1 | C28: 28019
A29: LG-8SFF-0-0 HPE DL380 Gen10 8SFF Svr Bundle w/o NIC, NIC Transceivers, and HBA | B29: HPE-LG-DL-V1-C2 | C29: 22677.97
A30: LG-8SFF-10G-0 HPE DL380 Gen10 8SFF Svr Bundle w/ NIC, NIC Transceivers; w/o HBA | B30: HPE-LG-DL-V1-C3 | C30: 24919.77
A31: LG-8SFF-0-32G HPE DL380 Gen10 8SFF Svr Bundle w/o NIC and NIC Transceivers; w/ HBA | B31: HPE-LG-DL-V1-C4 | C31: 25777.2
A32: LG HPE DL380 Gen10 8SFF Svr Bundle custom | B32: HPE-LG-DL-V1-C5 | C32: Call Trace3
A33: LenMWIe 12LFF HPE DL380 Gen10 Svr Bundle | B33: HPE-XS-LenMWIE-DL-V1-C1 | C33: 7024
A34: LenMWIe 12LFF HPE DL380 Gen10 Svr Bundle with GPU | B34: HPE-XS-LenMWIE-DL-V1-C2 | C34: 8001
A35: Trace3 Advanced Implementation Services - Onsite deployment at KP installation location | B35: QS-PS-Advanced Services | C35: 500
A36: Tripp Lite Heavy-Duty Computer Power Cord - 14AWG 15A (NEMA 5-15P to IEC-320-C13) 10-ft. | B36: P007-010 | C36: 10.34 | J36: Total Memory | K36: DIMM Count | L36: DIMM Size | M36: Memory $
A37: 128GB Memory Bundle | B37: Memory - 1R-128GB | C37: 1976 | J37: 128GB | K37: 8 | L37: HPE 16GB (1x16GB) Single Rank x4 DDR4-2933 | M37: $ 1,976.00
A38: 128GB Memory Bundle | B38: Memory- 2R -128GB | C38: 2304.72 | J38: 128GB | K38: 8 | L38: HPE 16GB (1x16GB) Dual Rank x8 DDR4-2933 | M38: $ 2,376.00
A39: 256GB Memory Bundle | B39: Memory-256GB | C39: 4609.44 | J39: 256GB | K39: 16 | L39: HPE 16GB (1x16GB) Dual Rank x8 DDR4-2933 | M39: $ 4,752.00
A40: 384GB Memory Bundle | B40: Memory-384GB | C40: 6754.08 | J40: 384GB | K40: 12 | L40: HPE 32GB (1x32GB) Dual Rank x4 DDR4-2933 | M40: $ 6,963.00
A41: 512GB Memory Bundle | B41: Memory-512GB | C41: 8173.2 | J41: 768GB | K41: 12 | L41: HPE 64GB (1x64GB) Dual Rank x4 DDR4-2933 | M41: $ 12,639.00
A42: 768GB Memory Bundle | B42: Memory-768GB | C42: 12259.8
A43: 480 GB MU SSD | B43: 480 GB MU SSD | C43: 363
A44: 960 GB MU SSD | B44: 960 GB MU SSD | C44: 695
A45: 1.92 TB MU SSD | B45: 1.92 TB MU SSD | C45: 1388
A46: 3.84 TB MU SSD | B46: 3.84 TB MU SSD | C46: 2775
A47: 300 GB 15K | B47: 300 GB 15K | C47: 275
A48: 600 GB 15K | B48: 600 GB 15K | C48: 513
A49: 900 GB 15K | B49: 900 GB 15K | C49: 575
A50: 300 GB 10K | B50: 300 GB 10K | C50: 150
A51: 600 GB 10K | B51: 600 GB 10K | C51: 250
A52: 1.2 TB 10K | B52: 1.2 TB 10K | C52: 370
A53: 1.8 TB 10K | B53: 1.8 TB 10K | C53: 573
A54: 2.4 TB 10K | B54: 2.4 TB 10K | C54: 594
A55: HPE DL38X Gen10 SFF Box1/2 Cage/Backplane Kit | B55: 826691-B21 | C55: 187
A56: OneView software | B56: E5Y35AAE
B57: Small Storage - 4 - 10TB | C57: 0
B58: Medium Storage 8 - 10TB | C58: 3219.76
B59: Large Storage 12 - 10TB | C59: 6439.52
A60: NVIDIA Quadro RTX 4000 includes power cable | B60: R1F95A | C60: 977

Sheet iLO Info (hidden)
B1: Trace3 | I1: To be filled out by KP
A2: Line | B2: KP Project Name | C2: Serial Number | D2: Asset tag | E2: KP PO | F2: SO | G2: FedEx Tracking | H2: Config Description | I2: Ship To Address | J2: Location | K2: iLO Hostname | L2: Domain Name | M2: IP | N2: Subnet Mask | O2: Default Gateway | P2: Time Zone

Sheet Working notes-updated needed (hidden)
C1: Complete hit Ship+P
A2: 2021-04-02 | B2: Reviewed MOL with team and need to make the following changes
B3: -- Remove Sales Tax row at bottom | C3: P
B4: -- When saving the form remove the Yellow box that mentions input | C4: P
B5: -- Change the color of Project input fields to make it easier to read | C5: P
A6: 2021-04-02 | B6: Todo's for project from Self
B7: -- Add programing to force 10Gbe nics when going to DC | C7: P
B8: -- Add code to change disk drive dropdown QTY based on available drives
B9: -- Add MWIE/Lenel/NVR sheet | C9: P
B10: -- Add summary page in front, show all BTS sized and options | C10: P
B11: -- Add programming to hide all sheets not needing to be shown for end users | C11: P
A12: 2021-04-09 | B12: Update prices as follows | C12: P
D13: DL380 sizes | E13: Old | F13: New
C14: P | D14: XS base config | E14: 8784.43 | F14: 8520.9
C15: P | D15: SM base config | E15: 12804.15 | F15: 12420.03
C16: P | D16: MD base config | E16: 14841.68 | F16: 14396.43
C17: P | D17: LG base config | E17: 22678.08 | F17: 21997.74
C18: P | D18: HBA (update for XS, SM, MD, LG) | E18: 3099.54 | F18: 3006.55
C19: P | D19: NIC w/transceivers (update for XS, SM, MD, LG) | E19: 2241.8 | F19: 2174.55
A20: 2021-04-19 | B20: Add startup code to reset values | C20: P
B21: -Select Location to default | C21: P
B22: -No installation | C22: P
B23: -No iLO config | C23: P
B24: -No extra drive bay | C24: P
B25: -No 115V power cord | C25: P
B26: -No Disk drives | C26: P
B27: -Make sure sheet is locked on startup | C27: P
B28: -Clear project name, contact and email from the form | C28: P
A30: 2021-04-19 | B30: Add code to remove drive type when zero'ing out drive selection
A32: 2021-04-20 | B32: Note: put most code in modules 2 so don't have to keep cleaning up for each sheet | C32: P
A33: 2021-05-04 | B33: Add code to pick Trace3 Part number and descripition on bottom of sheet | C33: P | D33: Fixed on version 1.01
A34: 2021-05-28 | B34: Fix math on HBA's - price is for 2 so don't double it per server | C34: P | D34: Fixed on version 1.02
A35: 2021-05-28 | B35: Create BTS overview sheet to show models and Trace3 contacts | C35: P
A36: 2021-05-28 | B36: NVR make Regional first on location list and 115V power cord yes by default | C36: P
A37: 2021-06-15 | B37: incorporate Andrea McKnights changes
B38: -Change order by putting project and installation info up top | C38: P
B39: -remove the light orangish color | C39: P
B40: -Group server config more contiguous | C40: P
B41: -Fix macro to select top field versus server select | C41: P
